[Event "Tsaghkadzor Open 2024"]
[Site "Tsaghkadzor"]
[Date "2024.10.03"]
[Round "6.1"]
[White "Nozdrachev, Vladislav"]
[Black "Karthik Venkataraman"]
[Result "0-1"]
[ECO "B33"]
[WhiteElo "2515"]
[BlackElo "2581"]
[Annotator "TA"]
[PlyCount "114"]
[EventDate "2024.09.13"]
[EventType "swiss"]
[EventCountry "ARM"]
[SourceTitle "playchess.com"]
[Source "ChessBase"]
[SourceQuality "1"]
[TimeControl "40/5400+30:1800+30"]

{[%evp 49,114,-17,-14,-44,-44,-65,0,0,0,0,0,0,0,-83,-83,-83,-76,-73,-81,-85,-91,-76,-72,-464,-403,-372,-466,-451,-462,-449,-465,-503,-503,-503,-470,-441,-441,-434,-441,-449,-449,-476,-455,-427,-430,-430,-407,-383,-383,-444,-444,-454,-454,-1143,-1137,-1118,-1115,-978,-974,-905,-828,-5477,-5397,-11043,-6558,-29977,-29977]} 1. e4 {[%emt 0:00:03]} c5 {[%emt 0:00:18]} 2. Nf3 {[%emt 0:00:03]} Nc6 {[%emt 0:00:04]} 3. d4 {[%emt 0:00:05]} cxd4 {[%emt 0:00:06]} 4. Nxd4 {[%emt 0:00:04]} Nf6 {[%emt 0:01:46]} 5. Nc3 {[%emt 0:00:09]} e5 {[%emt 0:00:11]} 6. Ndb5 {[%emt 0:00:07]} d6 {[%emt 0:00:05]} 7. Nd5 {[%emt 0:00:05]} Nxd5 {[%emt 0:00:05]} 8. exd5 {[%emt 0:00:34]} Nb8 {[%emt 0:00:07]} 9. a4 {[%emt 0:00:00]} Be7 {[%emt 0:00:31]} 10. Be2 {[%emt 0:00:00]} O-O {[%emt 0:01:42]} 11. O-O {[%emt 0:00:00]} a6 {[%emt 0:06:04]} 12. Na3 {[%emt 0:02:37]} Bf5 {[%emt 0:00:04]} 13. Nc4 {[%emt 0:06:53] B33: Sicilian: Pelikan and Sveshnikov Variations.} Nd7 {[%emt 0:00:06]} 14. a5 {[%emt 0:00:05]} Qc7 $5 {[%emt 0:03:49][%mdl 4] Leaves trodden paths.} 15. Be3 {[%emt 0:02:16]} Bg6 {[%emt 0:14:57]} 16. Nb6 $146 {[%emt 0:13:12]} ({Predecessor:} 16. Ra3 Rad8 17. Rc3 Qb8 18. b4 Rc8 19. Ra3 Rc7 20. c3 Qc8 21. Qb3 Qe8 22. Raa1 {1-0 Stefanov,D (2252)-Semov,D (2352) BUL-ch54 email 2019}) 16... Rae8 {[%emt 0:10:03]} 17. Nxd7 {[%emt 0:07:57]} Qxd7 {[%emt 0:00:04]} 18. c4 {[%emt 0:00:36]} f5 {[%emt 0:00:05]} 19. Bb6 {[%emt 0:00:00]} f4 {[%emt 0:05:23]} 20. Bg4 {[%emt 0:00:09]} Bf5 {[%emt 0:00:06]} 21. Bxf5 {[%emt 0:00:05]} Qxf5 {[%emt 0:00:05]} 22. f3 {[%emt 0:00:11]} e4 {[%emt 0:02:53]} 23. fxe4 {[%emt 0:09:20]} Qxe4 {[%emt 0:00:12]} 24. c5 {[%emt 0:00:03]} f3 {[%emt 0:10:01]} 25. Rxf3 {[%emt 0:00:41]} dxc5 {[%emt 0:00:09]} 26. Rxf8+ {[%emt 0:03:43]} (26. Bc7 {simplifies} Rxf3 27. Qxf3 Qxf3 28. gxf3 Bd8 29. Bxd8 Rxd8 30. Rd1) 26... Bxf8 {[%emt 0:01:37]} 27. Bc7 $1 {[%emt 0:00:34]} (27. d6 Bxd6 28. g3 (28. Qxd6 $2 Qe3+ 29. Kf1 Rf8+ $19) 28... Qc6 $17) 27... Re7 {[%emt 0:09:22]} (27... Qe3+ $15 28. Kh1 Re4) 28. d6 $11 {[%emt 0:02:10]} Rd7 {[%emt 0:00:01]} 29. Qb3+ {[%emt 0:12:15]} c4 {[%emt 0:00:09]} 30. Qh3 {[%emt 0:00:04]} Rf7 {[%emt 0:00:02]} 31. Qc8 {[%emt 0:00:46]} (31. Qc3 $11 {keeps the balance.}) 31... Qd4+ $17 {[%emt 0:08:43]} 32. Kh1 {[%emt 0:00:10]} Qxb2 {[%emt 0:00:03]} 33. Re1 {[%emt 0:03:16]} Qe5 {[%emt 0:07:24]} 34. Rc1 {[%emt 0:04:59]} (34. Rxe5 $2 Rf1#) (34. Qxf8+ Kxf8 (34... Rxf8 35. Rc1 Qf4 36. Rg1 c3 37. Bb6 Qxd6 38. h3 c2 39. Be3 Qg3 40. Bd2 Rd8 41. Be1 Qf4 42. g3 Qf3+ 43. Kh2 c1=Q 44. h4 Rd2+ 45. Bxd2 Qxd2+ 46. Kh3 Qdf2 47. Rc1 Q3xg3#) 35. Rg1 c3 36. Bd8 Qxd6 37. Bb6 c2 38. h3 Qa3 39. Kh2 c1=Q (39... c1=R 40. h4 Rxg1 41. Bxg1 Rf1 42. h5 Qxa5 43. g3 Qxh5+ 44. Kg2 Qe2+ 45. Kh3 Rxg1 46. Kh4 h6 47. Kh3 Qh5#) (39... Qd6+ 40. Kh1 Qa3 41. h4 Rf4 42. g3 c1=Q 43. Rxc1 Qxg3 44. Rc8+ Kf7 45. Rc7+ Kf6 46. Rc6+ bxc6 47. Bd8+ Ke6 48. h5 Rf1#) 40. Rxc1 Qxc1 41. h4 Rf1 (41... Qf4+ 42. g3 Qc4 43. h5 Rf1 44. g4 Qf4+ 45. Kh3 Qf3+ 46. Kh4 Rh1+ 47. Kg5 Qf6#) 42. h5 Qg5) 34... Qe3 {[%emt 0:03:10]} 35. Rg1 {[%emt 0:01:13]} Qd3 {[%emt 0:00:05]} 36. Qxb7 $2 {[%emt 0:08:16][%mdl 8192]} (36. Bb6 $17) 36... Qxd6 $19 {[%emt 0:00:42]} ({Less strong is} 36... Bxd6 37. Qc8+ Bf8 38. Be5 $11) 37. Bxd6 {[%emt 0:01:13]} Rxb7 {[%emt 0:00:02]} 38. Bxf8 {[%emt 0:00:15]} Kxf8 {[%emt 0:00:01]} 39. Rc1 {[%emt 0:00:06]} c3 {[%emt 0:08:44]} 40. Kg1 {[%emt 0:00:00]} Rc7 {[%emt 0:00:00]} 41. Rc2 {[%emt 0:16:53]} Ke7 {[%emt 0:15:53]} 42. Kf2 {[%emt 0:00:04]} Kd6 {[%emt 0:00:15]} 43. Ke2 {[%emt 0:00:30]} Kd5 {[%emt 0:01:45]} 44. Kd1 {[%emt 0:00:05]} Kc4 {[%emt 0:03:05]} 45. Re2 {[%emt 0:01:31]} Rb7 {[%emt 0:05:09]} 46. Re6 {[%emt 0:02:35]} Rb1+ {[%emt 0:00:07]} 47. Kc2 {[%emt 0:00:04]} Rb2+ {[%emt 0:00:02]} 48. Kc1 {[%emt 0:00:05]} Kb5 {[%emt 0:00:18]} (48... Rxg2 49. Rxa6 Rxh2 50. Rc6+ Kd4 51. Rd6+ Ke4 52. a6 $19) 49. g3 {[%emt 0:07:20]} Rxh2 {[%emt 0:00:58]} 50. Rb6+ {[%emt 0:00:05]} Kxa5 {[%emt 0:00:24]} 51. Rb7 {[%emt 0:01:02]} (51. Rb3 $142) 51... g6 $19 {[%emt 0:00:48]} 52. Rb3 {[%emt 0:00:48]} c2 {[%emt 0:00:07]} 53. Rb7 {[%emt 0:00:06]} h6 {[%emt 0:01:26]} 54. Rg7 {[%emt 0:02:02]} g5 {[%emt 0:00:21]} 55. Rb7 {[%emt 0:00:12]} h5 {[%emt 0:01:08]} 56. Rg7 {[%emt 0:03:09]} g4 {[%emt 0:00:11]} 57. Rb7 {[%emt 0:00:07]} h4 {[%emt 0:00:26]} 0-1

[Event "Tsaghkadzor Open 2024"]
[Site "Tsaghkadzor"]
[Date "2024.10.03"]
[Round "6.2"]
[White "Audi Ameya"]
[Black "Lysyj, Igor"]
[Result "0-1"]
[ECO "C54"]
[WhiteElo "2413"]
[BlackElo "2589"]
[Annotator "RC"]
[PlyCount "72"]
[EventDate "2024.09.13"]
[EventType "swiss"]
[EventCountry "ARM"]
[SourceTitle "playchess.com"]
[Source "ChessBase"]
[SourceQuality "1"]
[TimeControl "40/5400+30:1800+30"]

1. e4 {[%emt 1:31:00]} e5 {[%emt 1:31:00]} 2. Nf3 {[%emt 0:00:30]} Nc6 {[%emt 0:00:30]} 3. Bc4 {[%emt 0:00:30]} Bc5 {[%emt 0:00:30]} 4. c3 {[%emt 0:00:30]} Nf6 {[%emt 0:00:30]} 5. d3 {[%emt 0:00:30]} d6 {[%emt 0:00:30]} 6. O-O {[%emt 0:00:30]} h6 {[%emt 0:00:30]} 7. Re1 {[%emt 0:00:30]} O-O {[%emt 0:00:30]} 8. Nbd2 {[%emt 0:00:30]} a5 {[%emt 0:00:30]} 9. h3 {[%emt 0:00:30]} a4 {[%emt 0:00:30]} 10. Bb5 {[%emt 0:00:30]} Bd7 {[%emt 0:00:30]} 11. Nf1 {[%emt 0:00:30]} Ne7 {[%emt 0:00:30]} 12. Bxd7 {[%emt 0:00:30]} Nxd7 {[%emt 0:00:30]} 13. d4 {[%emt 0:00:30]} Bb6 {[%emt 0:00:30]} 14. Qc2 {[%emt 0:00:30]} exd4 {[%emt 0:00:30]} 15. cxd4 {[%emt 0:00:30]} d5 {[%emt 0:00:30]} 16. e5 {[%emt 0:00:30]} c5 {[%emt 0:00:30]} 17. Be3 {[%emt 0:00:30]} cxd4 {[%emt 0:00:30]} 18. Bxd4 {[%emt 0:00:30]} Ra6 {[%emt 0:00:30]} 19. Rad1 {[%emt 0:00:30]} Qc7 {[%emt 0:00:30]} 20. Qb1 {[%emt 0:00:30]} Ba5 {[%emt 0:00:30]} 21. Re2 {[%emt 0:00:30]} Rd8 {[%emt 0:00:30]} 22. b4 {[%emt 0:00:30]} axb3 {[%emt 0:00:30]} 23. Qxb3 {[%emt 0:00:30]} Nc5 {[%emt 0:00:30]} 24. Qb1 {[%emt 0:00:30]} Ne6 {[%emt 0:00:30]} 25. Ne3 {[%emt 0:00:30]} Rc6 {[%emt 0:00:30]} 26. Rb2 {[%emt 0:00:30]} Rd7 {[%emt 0:00:30]} 27. Rb5 {[%emt 0:00:30]} Bc3 {[%emt 0:00:30]} 28. Bb6 {[%emt 0:00:30]} Qc8 {[%emt 0:00:30]} 29. a4 {[%emt 0:00:30]} d4 {[%emt 0:00:30]} 30. Nf5 {[%emt 0:00:30]} Nxf5 {[%emt 0:00:30]} 31. Qxf5 {[%emt 0:00:30]} Rc4 {[%emt 0:00:30]} 32. Qc2 {[%emt 0:00:30]} Qc6 {[%emt 0:00:30]} 33. Ba7 {[%emt 0:00:30]} Qa6 {[%emt 0:00:30]} 34. Bb8 {[%emt 0:00:30]} Rxa4 {[%emt 0:00:30]} 35. Rdb1 {[%emt 0:00:30]} Ra1 {[%emt 0:00:30]} 36. Bd6 {[%emt 0:00:30]} Qxb5 {[%emt 0:00:30]} 0-1

[Event "Tsaghkadzor Open 2024"]
[Site "Tsaghkadzor"]
[Date "2024.10.03"]
[Round "6.3"]
[White "Gabuzyan, Hovhannes"]
[Black "Andriasian, Zaven"]
[Result "1/2-1/2"]
[ECO "C69"]
[WhiteElo "2579"]
[BlackElo "2558"]
[Annotator "TA"]
[PlyCount "66"]
[EventDate "2024.09.13"]
[EventType "swiss"]
[EventCountry "ARM"]
[SourceTitle "playchess.com"]
[Source "ChessBase"]
[SourceQuality "1"]
[TimeControl "40/5400+30:1800+30"]

{[%evp 16,66,3,14,18,6,1,6,10,0,46,13,39,35,29,45,44,6,54,0,0,0,0,0,0,15,12,-23,48,25,95,32,40,30,110,6,22,14,12,-15,-16,-11,-17,-54,-45,-83,-38,-38,0,-73,0,-53,0]} 1. e4 {[%emt 0:00:03]} e5 {[%emt 0:03:24]} 2. Nf3 {[%emt 0:00:05]} Nc6 {[%emt 0:00:05]} 3. Bb5 {[%emt 0:01:35]} a6 {[%emt 0:00:59]} 4. Bxc6 {[%emt 0:00:04]} dxc6 {[%emt 0:00:07]} 5. O-O {[%emt 0:00:04]} f6 {[%emt 0:01:08]} 6. d4 {[%emt 0:00:20]} exd4 {[%emt 0:00:39]} 7. Nxd4 {[%emt 0:00:04]} Ne7 {[%emt 0:17:07]} 8. Be3 {[%emt 0:06:44]} Ng6 {[%emt 0:00:43]} 9. Nd2 {[%emt 0:00:04]} Bd6 {[%emt 0:02:53]} 10. c3 {[%emt 0:13:54]} O-O {[%emt 0:02:00]} 11. f4 {[%emt 0:02:32]} Qe8 {[%emt 0:05:02] The position is equal.} 12. Qf3 {[%emt 0:07:03]} f5 {[%emt 0:05:29]} (12... Qf7 $11) 13. e5 $14 {[%emt 0:03:27]} Be7 {[%emt 0:00:16]} 14. b4 {[%emt 0:01:47]} a5 {[%emt 0:00:54]} 15. a3 {[%emt 0:07:20]} Qf7 {[%emt 0:03:12]} 16. h3 {[%emt 0:07:16]} Ra6 {[%emt 0:07:18]} (16... c5 $11 17. bxc5 c6) 17. b5 {[%emt 0:02:20]} cxb5 {[%emt 0:02:59]} 18. Nxb5 {[%emt 0:00:03]} Nh4 {[%emt 0:00:50]} 19. Qe2 {[%emt 0:00:59][%cal Og2g3]} Rg6 {[%emt 0:05:24]} 20. Rf2 {[%emt 0:00:09][%cal Og1h2]} Bd7 {[%emt 0:01:01] [#] Strongly threatening ...Bc6.} 21. Kh2 {[%emt 0:15:25] And now g3 would win.} ({But not} 21. Nxc7 Rc8 22. e6 (22. Nb5 $2 Bc6 $19) 22... Bxe6 23. Nxe6 Rxe6 $15 (23... Qxe6 24. Bd4 $15)) 21... Rc6 {[%emt 0:19:03]} ({Don't go for} 21... Bc6 $2 22. g3 $18 (22. Nxc7 $2 {loses.} Nxg2 23. Bb6 Bh4 $19)) (21... Nxg2 $11 22. Rxg2 Rxg2+ 23. Qxg2 Bxb5 24. Qxb7 Bd3) 22. a4 {[%emt 0:05:10]} Be6 {[%emt 0:01:25]} (22... Rd8 $11 {keeps the balance.}) 23. Bd4 {[%emt 0:00:44]} (23. Rc1 $16) 23... Ng6 {[%emt 0:02:35]} 24. Rb1 {[%emt 0:03:24]} Bc4 {[%emt 0:02:23]} (24... Ra8 $11) 25. Qe3 {[%emt 0:01:35]} (25. Nxc4 $16 Qxc4 26. Qc2) 25... Qd5 $11 {[%emt 0:01:02]} 26. g3 {[%emt 0:02:47]} Rd8 $1 {[%emt 0:01:26]} 27. Qf3 {[%emt 0:03:47] White is weak on the light squares} Qxf3 {[%emt 0:01:35]} 28. Rxf3 {[%emt 0:00:13]} Bd5 {[%emt 0:01:28] A strong pair of Bishops.} 29. Rf2 {[%emt 0:00:19]} Nf8 {[%emt 0:00:43]} 30. Be3 {[%emt 0:00:53][%cal Oc3c4]} Be6 {[%emt 0:02:47]} 31. Bd4 {[%emt 0:01:35]} Bd5 {[%emt 0:01:10]} 32. Be3 $1 {[%emt 0:00:53]} Be6 {[%emt 0:01:37]} 33. Bd4 {[%emt 0:00:49]} Bd5 {[%emt 0:00:40] Weighted Error Value: White=0.19 (very precise) /Black=0.22 (precise) .  Mistake:       	White=2     	Black=6      Inaccurate:     	White=5     	Black=1      OK:         	White=5     	Black=11     Best:        	White=2     	Black=1      Strong:       	White=1     	Black=1} ({Black should try} 33... Rd7 $15) 1/2-1/2

[Event "Tsaghkadzor Open 2024"]
[Site "Tsaghkadzor"]
[Date "2024.10.03"]
[Round "6.4"]
[White "Lobanov, Sergei"]
[Black "Hakobyan, Erik"]
[Result "1-0"]
[ECO "D35"]
[WhiteElo "2506"]
[BlackElo "2386"]
[Annotator "TA"]
[PlyCount "51"]
[EventDate "2024.09.13"]
[EventType "swiss"]
[EventCountry "ARM"]
[SourceTitle "playchess.com"]
[Source "ChessBase"]
[SourceQuality "1"]
[TimeControl "40/5400+30:1800+30"]

{[%evp 12,51,25,37,31,32,36,27,29,25,29,20,15,27,41,43,43,39,50,40,60,9,290,268,368,405,378,375,381,378,425,405,417,415,418,424,441,436,618,445,674,659]} 1. d4 {[%emt 0:00:03]} Nf6 {[%emt 0:00:16]} 2. c4 {[%emt 0:00:05]} e6 {[%emt 0:00:06]} 3. Nc3 {[%emt 0:00:04]} d5 {[%emt 0:00:22]} 4. cxd5 {[%emt 0:00:11]} exd5 {[%emt 0:00:07]} 5. Bg5 {[%emt 0:00:04][%cal Bc1g5,Bg5h4,Bh4g3][%mdl 32]} Bb4 {[%emt 0:00:08]} 6. e3 {[%emt 0:00:19]} h6 {[%emt 0:00:07][%cal Bh7h6,Bh6h5,Bh5h4][%mdl 32]} 7. Bh4 {[%emt 0:00:28]} g5 {[%emt 0:00:08]} 8. Bg3 {[%emt 0:00:05]} Ne4 {[%emt 0:00:04]} 9. a3 {[%emt 0:02:05]} Bxc3+ {[%emt 0:00:24] White has an edge.} 10. bxc3 {[%emt 0:00:02]} h5 {[%emt 0:00:08][%cal Ob8d7]} 11. f3 {[%emt 0:00:12]} Nxg3 {[%emt 0:00:06]} 12. hxg3 {[%emt 0:00:04]} Qd6 {[%emt 0:06:01]} 13. g4 {[%emt 0:03:57]} h4 {[%emt 0:00:38]} 14. Nh3 {[%emt 0:00:12][%cal Bg1h3,Bh3f4,Bf4e2][%mdl 32]} Rg8 {[%emt 0:00:01]} 15. Bd3 {[%emt 0:03:26]} Be6 {[%emt 0:09:32]} 16. Qb3 {[%emt 0:06:11]} (16. e4 $14) 16... Qg3+ $2 {[%emt 0:09:16][%mdl 8192] A mistake that costs the game.} (16... Nc6 $11 {and Black stays safe.}) 17. Kf1 $18 {[%emt 0:08:24]} b6 {[%emt 0:06:31] [#]} 18. Nf4 $1 {[%emt 0:02:59][%mdl 512]} Bxg4 {[%emt 0:21:33]} (18... gxf4 19. Rh3 $18) 19. Ne2 {[%emt 0:00:46]} (19. Nxd5 h3 20. Nf6+ (20. fxg4 $2 {too greedy.} hxg2+ 21. Ke2 gxh1=Q $19) 20... Kf8 21. Qb4+ (21. Nxg4 $2 {loses.} Qxg2+ 22. Ke1 Qxh1+ $19) 21... c5 $18 (21... Kg7 $2 22. Rxh3 $18)) (19. Qxd5 gxf4 20. fxg4 (20. Qxa8 Be6 $17) 20... fxe3 $16) 19... Qd6 {[%emt 0:00:05]} 20. fxg4 {[%emt 0:00:03]} Nd7 {[%emt 0:00:04]} 21. Rh3 {[%emt 0:03:01]} Nf6 {[%emt 0:02:02]} 22. Bf5 {[%emt 0:00:36]} Kf8 {[%emt 0:00:06]} 23. c4 {[%emt 0:00:32]} Re8 {[%emt 0:02:56] White is clearly winning.} 24. cxd5 {[%emt 0:01:15]} Kg7 {[%emt 0:00:17]} (24... Qxd5 $142 25. Qxd5 Nxd5) 25. Kg1 {[%emt 0:01:46] Nc3 would now be deadly.} Re7 {[%emt 0:01:49]} (25... Qxd5 $142 26. Qxd5 Nxd5) 26. Nc3 {[%emt 0:04:01] Weighted Error Value: White=0.16 (very precise) /Black=0.59.  Loses game:     	---       	Black=1      Mistake:       	White=1     	Black=2      Inaccurate:     	---       	Black=1      OK:         	White=11    	Black=7      Best:        	White=1     	---        Brilliant:      	White=1     	---} 1-0

[Event "Tsaghkadzor Open 2024"]
[Site "Tsaghkadzor"]
[Date "2024.10.03"]
[Round "6.5"]
[White "Gharibyan, Mamikon"]
[Black "Davtyan, Arsen"]
[Result "1/2-1/2"]
[ECO "C84"]
[WhiteElo "2472"]
[BlackElo "2377"]
[Annotator "TA"]
[PlyCount "72"]
[EventDate "2024.09.13"]
[EventType "swiss"]
[EventCountry "ARM"]
[SourceTitle "playchess.com"]
[Source "ChessBase"]
[SourceQuality "1"]
[TimeControl "40/5400+30:1800+30"]

{[%evp 13,72,13,26,11,24,8,7,23,26,8,8,2,31,31,50,22,21,22,39,18,23,0,0,0,0,0,0,-10,0,0,0,-62,-55,-84,-97,-130,-139,-160,-130,-212,-218,-198,-52,-41,-25,-75,0,0,0,0,0,0,0,0,0,0,10,0,3,0,10]} 1. e4 {[%emt 0:01:22]} e5 {[%emt 0:00:06]} 2. Nf3 {[%emt 0:00:46]} Nc6 {[%emt 0:00:06]} 3. Bb5 {[%emt 0:01:10][%cal Bf1b5,Bb5a4,Ba4b3][%mdl 32]} a6 {[%emt 0:00:12]} 4. Ba4 {[%emt 0:00:11]} Nf6 {[%emt 0:00:05]} 5. O-O {[%emt 0:00:06]} Be7 {[%emt 0:01:56]} 6. d3 {[%emt 0:01:00]} b5 {[%emt 0:00:09]} 7. Bb3 {[%emt 0:00:10]} d6 {[%emt 0:00:04]} 8. Bd2 {[%emt 0:00:55]} O-O {[%emt 0:01:26]} 9. Re1 {[%emt 0:02:24]} h6 {[%emt 0:00:46]} 10. h3 {[%emt 0:00:39]} Re8 {[%emt 0:00:47]} 11. a3 {[%emt 0:10:17]} Bf8 {[%emt 0:13:10]} 12. Nc3 {[%emt 0:00:56]} Na5 {[%emt 0:00:36]} 13. Ba2 {[%emt 0:01:07]} c5 {[%emt 0:01:20]} 14. b4 {[%emt 0:08:32]} Nc6 {[%emt 0:00:50]} 15. Nd5 {[%emt 0:00:35]} Rb8 {[%emt 0:06:32]} 16. c4 {[%emt 0:07:17]} Bd7 {[%emt 0:17:33]} 17. Rb1 {[%emt 0:04:52]} Nxd5 {[%emt 0:12:01]} 18. cxd5 {[%emt 0:08:21]} Nd4 {[%emt 0:11:12]} 19. Nxd4 {[%emt 0:01:40]} cxd4 {[%emt 0:00:04]} 20. f4 {[%emt 0:00:55]} exf4 {[%emt 0:11:20]} 21. Bxf4 {[%emt 0:01:44]} Rc8 {[%emt 0:00:04]} 22. Qf3 {[%emt 0:07:34]} (22. Rf1 $11) 22... Qf6 $1 $15 {[%emt 0:04:36]} 23. Qg3 {[%emt 0:18:22] [#]} g5 $1 {[%emt 0:02:26]} 24. Rf1 {[%emt 0:04:13] [#]} Qg6 $1 {[%emt 0:00:42]} 25. Bc1 {[%emt 0:02:34]} Bg7 {[%emt 0:01:02] Hoping for ...f5.} 26. Bb2 {[%emt 0:06:10]} (26. Qf2 $17) 26... Be5 {[%emt 0:06:56]} 27. Qf2 {[%emt 0:00:22][%cal Oa2b3]} Qg7 {[%emt 0:00:02]} ({Black should play} 27... g4 $19 28. Bxd4 gxh3 29. Bxe5 Rxe5) 28. Bb3 {[%emt 0:01:56]} Rf8 {[%emt 0:01:09] Strongly threatening ...f5.} 29. g4 {[%emt 0:02:17]} (29. Rbc1 $11 {keeps the balance.}) 29... Rc7 {[%emt 0:02:03]} (29... h5 $1 $17 {[%cal Rh5g4]} 30. Bd1 hxg4 31. Bxg4 Bxg4 32. hxg4 Qh8) 30. Rbc1 $11 {[%emt 0:01:02] The position is equal.} Rfc8 {[%emt 0:00:29]} 31. Rxc7 {[%emt 0:00:29]} Rxc7 {[%emt 0:00:00]} 32. Kg2 {[%emt 0:00:48]} Rc8 {[%emt 0:00:57]} 33. Bd1 {[%emt 0:01:11]} Rc7 {[%emt 0:01:27]} 34. Bf3 {[%emt 0:00:45]} Rc8 {[%emt 0:00:10]} 35. Bd1 {[%emt 0:00:20]} Rc7 {[%emt 0:00:01]} 36. Bf3 {[%emt 0:00:06]} Rc8 {[%emt 0:00:01] Weighted Error Value: White=0.15 (very precise) /Black=0.15 (very precise) .  Mistake:       	White=3     	Black=2      Inaccurate:     	White=3     	Black=1      OK:         	White=10    	Black=8      Strong:       	---       	Black=3} 1/2-1/2

[Event "Tsaghkadzor Open 2024"]
[Site "Tsaghkadzor"]
[Date "2024.10.03"]
[Round "6.6"]
[White "Davtyan, Artur"]
[Black "Gasparyan, Erik R."]
[Result "1/2-1/2"]
[ECO "C50"]
[WhiteElo "2467"]
[BlackElo "2350"]
[Annotator "RC"]
[PlyCount "77"]
[EventDate "2024.09.13"]
[EventType "swiss"]
[EventCountry "ARM"]
[SourceTitle "playchess.com"]
[Source "ChessBase"]
[SourceQuality "1"]
[TimeControl "40/5400+30:1800+30"]

1. e4 {[%emt 1:31:00]} e5 {[%emt 1:31:00]} 2. Nf3 {[%emt 0:00:00]} Nc6 {[%emt 0:00:00]} 3. Bc4 {[%emt 0:00:00]} Bc5 {[%emt 0:00:00]} 4. O-O {[%emt 0:00:00]} Nf6 {[%emt 0:00:00]} 5. d3 {[%emt 0:00:00]} d6 {[%emt 0:00:00]} 6. a4 {[%emt 0:00:00]} a5 {[%emt 0:00:00]} 7. c3 {[%emt 0:00:00]} h6 {[%emt 0:00:00]} 8. Bb3 {[%emt 0:00:00]} O-O {[%emt 0:00:00]} 9. Nbd2 {[%emt 0:00:00]} Be6 {[%emt 0:00:00]} 10. Nc4 {[%emt 0:00:00]} Ne7 {[%emt 0:00:00]} 11. Nxa5 {[%emt 0:00:00]} Rxa5 {[%emt 0:00:00]} 12. Bxe6 {[%emt 0:00:00]} fxe6 {[%emt 0:00:00]} 13. b4 {[%emt 0:00:00]} Bxb4 {[%emt 0:00:00]} 14. cxb4 {[%emt 0:00:00]} Ra8 {[%emt 0:00:00]} 15. d4 {[%emt 0:00:00]} Nxe4 {[%emt 0:00:00]} 16. dxe5 {[%emt 0:00:00]} d5 {[%emt 0:00:00]} 17. Nd4 {[%emt 0:00:00]} Qd7 {[%emt 0:00:00]} 18. Ra3 {[%emt 0:00:00]} c5 {[%emt 0:00:00]} 19. bxc5 {[%emt 0:00:00]} Nxc5 {[%emt 0:00:00]} 20. a5 {[%emt 0:00:00]} Nf5 {[%emt 0:00:00]} 21. Nxf5 {[%emt 0:00:00]} exf5 {[%emt 0:00:00]} 22. Be3 {[%emt 0:00:00]} Ne6 {[%emt 0:00:00]} 23. Bb6 {[%emt 0:00:00]} d4 {[%emt 0:00:00]} 24. Qf3 {[%emt 0:00:00]} Rf7 {[%emt 0:00:00]} 25. Rd1 {[%emt 0:00:00]} Qb5 {[%emt 0:00:00]} 26. Re1 {[%emt 0:00:00]} Rc8 {[%emt 0:00:00]} 27. Rb3 {[%emt 0:00:00]} Qc6 {[%emt 0:00:00]} 28. h4 {[%emt 0:00:00]} Qxf3 {[%emt 0:00:00]} 29. Rxf3 {[%emt 0:00:00]} Rd7 {[%emt 0:00:40]} 30. Rxf5 {[%emt 0:00:00]} d3 {[%emt 0:04:32]} 31. Rd1 {[%emt 0:00:00]} Nd4 {[%emt 0:02:01]} 32. Bxd4 {[%emt 0:01:28]} Rxd4 {[%emt 0:00:04]} 33. Rf3 {[%emt 0:06:53]} d2 {[%emt 0:03:26]} 34. Kf1 {[%emt 0:00:04]} Rc5 {[%emt 0:02:01]} 35. e6 {[%emt 0:05:50]} Re4 {[%emt 0:00:19]} 36. Re3 {[%emt 0:00:16]} Rxe3 {[%emt 0:00:18]} 37. fxe3 {[%emt 0:00:04]} Rxa5 {[%emt 0:00:03]} 38. Rxd2 {[%emt 0:00:04]} Re5 {[%emt 0:00:04]} 39. Rd7 {[%emt 0:00:36]} 1/2-1/2